Cogmind - Beta 11 @@@ ROGUE MODE // 2022.03.26 @ 20:17:58 Player: Saddlefall Result: Destroyed by Y-45 Defender with Heavy Assault Rifle Performance ------------- Evolutions (1) 500 Regions Visited (2) 400 Robots Destroyed (19) 95 Value Destroyed (457) 457 Prototype IDs (2) 40 Alien Tech Used (0) 0 Bonus (30) 30 TOTAL SCORE: 1522 Bonus ------- High Alert Combat Kills 30 Cogmind --------- Core Integrity 0/400 Matter 300/300 Energy 100/100 System Corruption 0% Temperature Cool (9) Movement Core (100) Ox1 Location -9/Materials Parts ------- > --- POWER (1) -------- (None) > --- PROPULSION (3) --- (None) > --- UTILITY (3) ------ Small Storage Unit Advanced Weight Redist. System > --- WEAPON (2) ------- (None) > --- INVENTORY (8) ---- Aluminum Leg Heavy Particle Cannon Mini Grenade Launcher Peak State ------------ > --- POWER ------------ (None) > --- PROPULSION ------- Light Treads Light Treads Light Treads > --- UTILITY ---------- Heat Sink Small Storage Unit Advanced Weight Redist. System > --- WEAPON ----------- Heavy Particle Cannon Mini Grenade Launcher > --- INVENTORY -------- Aluminum Leg Heavy Particle Cannon [Rating: 13] Favorites ----------- Power Light Ion Engine Engine Light Ion Engine Propulsion Aluminum Leg Treads Light Treads Leg Aluminum Leg Flight Unit Flight Unit Utility Small Storage Unit Device Advanced Weight Redist. System Storage Small Storage Unit Protection Hardened Light Armor Plating Weapon Light Assault Rifle Energy Gun Medium Laser Energy Cannon Heavy Particle Cannon Ballistic Gun Light Assault Rifle Launcher Mini Grenade Launcher Build | -11 -10 -9 ------- Run | Scr Mat Mat Slots Evolved 2 | . . 2 Power . | . . . Propulsion 1 | . . 1 Utility 1 | . . 1 Weapon . | . . . Parts Attached 17 | . 3 14 Power 2 | . 1 1 Engine 2 | . 1 1 Core . | . . . Reactor . | . . . Propulsion 6 | . 2 4 Treads 3 | . . 3 Leg 1 | . 1 . Wheel . | . . . Hover . | . . . Flight 2 | . 1 1 Utility 4 | . . 4 Device 2 | . . 2 Storage 1 | . . 1 Processor . | . . . Hackware . | . . . Protection 1 | . . 1 Artifact . | . . . Weapon 5 | . . 5 Energy Gun 1 | . . 1 Energy Cannon 2 | . . 2 Ballistic Gun 1 | . . 1 Ballistic Cannon . | . . . Launcher 1 | . . 1 Special Weapon . | . . . Impact Weapon . | . . . Slashing Weapon . | . . . Piercing Weapon . | . . . Special Melee Weapon . | . . . Unidentified Prototypes . | . . . Parts Lost 11 | . 1 10 Power 2 | . . 2 Propulsion 6 | . 1 5 Utility 1 | . . 1 Weapon 2 | . . 2 Highest Loss Streak 4 | . 1 4 To Critical Strikes . | . . . Average Slot Usage (%) 57 | . 66 48 Engine 9 | . 14 3 Treads 5 | . . 11 Leg 7 | . 14 . Flight 6 | . 6 7 Device 5 | . . 11 Storage 6 | . 8 4 Energy Gun 4 | . 8 . Energy Cannon 2 | . . 4 Ballistic Gun 9 | . 14 3 Naked Turns . | . . . Heaviest Build 13 | 13 13 12 Greatest Support 60 | 20 20 60 Greatest Overweight (x) 4 | . 4 2 Average Overweight (x) . | . . . Largest Inventory Capacity 8 | . 8 8 Average Capacity 6 | . 6 6 Most Carried 8 | . 8 5 Average Carried 5 | . 6 4 Final Capacity 8 | 8 5 8 Final Carried 6 | 6 5 3 Class Distribution -------------------- 100% | Mutant Dominant Class ---------------- Mutant | -10/Materials Mutant | -9/Materials Resources | -11 -10 -9 ----------- Run | Scr Mat Mat Matter Collected 386 | 200 35 151 Remotely . | . . . Salvage Created 561 | . 174 387 Parts 36 | . 6 30 Haulers Intercepted . | . . . Recyclers Shooed 1 | . . 1 Parts Field Recycled . | . . . Retrieved Matter . | . . . Parts Self-Destructed . | . . . Prevented . | . . . Kills | -11 -10 -9 ------- Run | Scr Mat Mat Combat Hostiles Destroyed 17 | . 6 11 Guns 10 | . 6 4 Cannons 7 | . . 7 Classes Destroyed 5 | . 2 3 Builder 1 | . . 1 Tunneler 1 | . . 1 Swarmer 8 | . 3 5 Grunt 6 | . 3 3 Sentry 3 | . . 3 Best Kill Streak 6 | . 3 6 Combat Bots Only 4 | . 3 4 Max Kills in Single Turn 1 | . 1 1 Gunslinging . | . . . Exploded . | . . . Melee . | . . . Uniques/NPCs Destroyed . | . . . Combat | -11 -10 -9 -------- Run | Scr Mat Mat Damage Taken 1793 | . 402 1391 Core 493 | . 93 400 Absorbed by Shields . | . . . Core Remaining (%) 81 | 100 62 . Volleys Fired 58 | . 28 30 Largest 2 | . 2 2 Hottest 105 | . 70 105 Shots Fired 94 | . 53 41 Gun 75 | . 53 22 Cannon 18 | . . 18 Launcher 1 | . . 1 Special . | . . . Kinetic 46 | . 28 18 Thermal 47 | . 25 22 Explosive 1 | . . 1 Electromagnetic . | . . . Robot Hit Streak 11 | . 5 11 Robot Miss Streak 5 | . 5 2 Penetration Max . | . . . Secondary Targets 1 | . 1 . Max Gunslinging Chain 1 | . 1 . Shots Hit Robots 54 | . 24 30 Core Hits 32 | . 12 20 Critical Kills . | . . . Critical Parts Destroyed . | . . . Critical Strikes 3 | . 2 1 Burn 3 | . 2 1 Melee Attacks . | . . . Impact . | . . . Slashing . | . . . Piercing . | . . . Sneak Attacks . | . . . Combat Hostiles . | . . . Follow-up Attacks . | . . . Damage Inflicted 928 | . 251 677 Guns 404 | . 251 153 Cannons 350 | . . 350 Explosions 142 | . . 142 Melee . | . . . Ramming 32 | . . 32 Kinetic 179 | . 77 102 Thermal 575 | . 174 401 Explosive 142 | . . 142 Electromagnetic . | . . . Impact . | . . . Slashing . | . . . Piercing . | . . . Highest Corruption 2 | . 2 . Average Corruption 2 | . 2 . Corruption Purged . | . . . Corruption Blocked . | . . . Effects 2 | . 2 . Matter Fused 2 | . 2 . Overload Shots . | . . . Overflow Damage 5 | . . 5 Projectiles 5 | . . 5 Explosions . | . . . Melee . | . . . Knockbacks . | . . . Impact . | . . . Kinetic . | . . . Secondary . | . . . Self-Inflicted Damage 54 | . . 54 Shots 1 | . . 1 Rammed 13 | . . 13 Targets Rammed 14 | . . 14 Kicked . | . . . Crushed 1 | . . 1 Highest Temperature 440 | . 440 240 Average Temperature 146 | . 198 84 Received Heat Transfer 534 | . 129 405 Effects 2 | . 2 . Shutdowns 1 | . 1 . Interference 1 | . 1 . Siege Activations . | . . . Robots Corrupted . | . . . Combat Hostiles . | . . . Parts Fried . | . . . Impact Corruptions . | . . . Robots Melted . | . . . Combat Hostiles . | . . . Parts Melted 5 | . 1 4 Heat Transferred 1406 | . 666 740 Parts Sabotaged . | . . . Parts Stolen . | . . . Parts Stripped . | . . . Power Chain Reactions . | . . . Missiles Intercepted . | . . . Alert | -11 -10 -9 ------- Run | Scr Mat Mat Peak Influence 495 | . 202 495 Initial 85 | . . 85 Average 233 | . 136 332 Maximum Alert Level 2 | . 1 2 Low Security (%) 54 | . 77 30 Level 1 23 | . 22 24 Level 2 22 | . . 45 Level 3 . | . . . Level 4 . | . . . Level 5 . | . . . High Security . | . . . Max Security . | . . . Squads Dispatched 5 | . 4 1 Investigation 3 | . 2 1 Extermination . | . . . Reinforcement 2 | . 2 . Assault . | . . . Garrison . | . . . Intercept . | . . . Searches Triggered . | . . . Construction Impeded . | . . . Haulers Reinforced . | . . . Active Scanning Responses . | . . . Cargo Convoy Interrupts . | . . . Stealth | -11 -10 -9 --------- Run | Scr Mat Mat Distress Signals 2 | . . 2 Communications Jammed . | . . . Distress Signals . | . . . Times Spotted 39 | . 16 23 Peak Tracking Total 10 | . 8 10 Tactical Retreats 5 | . 1 4 Traps | -11 -10 -9 ------- Run | Scr Mat Mat Traps Triggered 2 | . 2 . Indirectly . | . . . Trap Hack Attempts . | . . . Triggered . | . . . Disarmed . | . . . Reprogrammed . | . . . Reused . | . . . Traps Extracted . | . . . Installed . | . . . Triggered . | . . . Machines | -11 -10 -9 ---------- Run | Scr Mat Mat Machines Disabled . | . . . Max in Single Turn . | . . . Machines Sabotaged . | . . . Garrisons Compromised . | . . . Overloaded Fab Kills . | . . . Hacking | -11 -10 -9 --------- Run | Scr Mat Mat Machines Accessed 3 | . 2 1 Terminals 3 | . 2 1 Fabricators . | . . . Repair Stations . | . . . Recycling Units . | . . . Scanalyzers . | . . . Garrison Access . | . . . Total Hacks 11 | . 5 6 Successful 7 | . 3 4 Failed 4 | . 2 2 Catastrophic . | . . . Database Lockouts . | . . . Manual . | . . . Terminals 11 | . 5 6 Fabricators . | . . . Repair Stations . | . . . Recycling Units . | . . . Scanalyzers . | . . . Garrison Access . | . . . Terminal Hacks 7 | . 3 4 Record 5 | . 2 3 Prototype ID Bank 1 | . 1 . Alert Level 1 | . . 1 Fabricator Hacks . | . . . Repair Station Hacks . | . . . Recycling Unit Hacks . | . . . Scanalyzer . | . . . Garrison Access Hacks . | . . . Unauthorized Hacks . | . . . Terminals . | . . . Fabricators . | . . . Repair Stations . | . . . Recycling Units . | . . . Scanalyzers . | . . . Garrison Access . | . . . Data Cores Recovered . | . . . Used . | . . . Hacking Detections 3 | . 2 1 Full Trace Events 2 | . 1 1 Feedback Events . | . . . Feedback Blocked . | . . . Robot Schematics Acquired . | . . . Robots Built . | . . . Authchips . | . . . Time . | . . . Total Robot Build Rating . | . . . Part Schematics Acquired . | . . . Parts Built . | . . . Authchips . | . . . Time . | . . . Total Part Build Rating . | . . . Parts Repaired . | . . . Time . | . . . Parts Recycled . | . . . Recycled Matter . | . . . Retrieved Matter . | . . . Retrieved Components . | . . . Parts Scanalyzed . | . . . Part Schematics Acquired . | . . . Parts Damaged . | . . . Bothacking | -11 -10 -9 ------------ Run | Scr Mat Mat Used RIF Installer . | . . . Robots Hacked . | . . . Non-combat . | . . . Combat . | . . . Robot Hacks Applied . | . . . Relay Couplers Released . | . . . Fabnet Peak Effective % . | . . . Robots Rewired . | . . . Allies Hacked . | . . . Hacks Repelled . | . . . Allies | -11 -10 -9 -------- Run | Scr Mat Mat Total Allies . | . . . Largest Group . | . . . Highest-Rated Group . | . . . Highest-Rated Ally . | . . . Total Orders . | . . . Ally Attacks . | . . . Total Damage . | . . . Kills . | . . . Allies Corrupted . | . . . Allies Melted . | . . . Intel | -11 -10 -9 ------- Run | Scr Mat Mat Robot Analysis Total . | . . . Derelict Logs Recovered . | . . . Drone Launches . | . . . Drone Recoveries . | . . . Exploration | -11 -10 -9 ------------- Run | Scr Mat Mat Turns Passed 693 | . 349 344 Spaces Moved 686 | 1 414 271 Core 4 | . 2 2 Treads 70 | . . 70 Legs 103 | 1 102 . Wheels . | . . . Hover . | . . . Flight 509 | . 310 199 Fastest Speed 37 | 120 40 37 Average Speed 67 | 120 61 77 Slowest Speed 250 | 120 250 200 Overloaded Moves . | . . . Propulsion Burnouts . | . . . Robots Hopped 6 | . 4 2 Cave-ins Triggered . | . . . Exploration Rate (%) 33 | 2 59 39 Regions Visited 2 Branch Regions . Pre-discovered Areas . | . . . Known Exits Taken . | . . . Unknown Exits Taken 2 | 1 1 . Scrap Searched . | . . . Spaces Dug . | . . . Terrain Destroyed 9 | . . 9 Melee . | . . . Projectile 4 | . . 4 AOE 5 | . . 5 Terrain Rammed . | . . . Walls Destroyed . | . . . Machines Disabled . | . . . Actions | -11 -10 -9 --------- Run | Scr Mat Mat Total 823 | . 463 360 Wait 27 | . 2 25 Move 673 | . 406 267 Hop 5 | . 3 2 Pick Up 12 | . 9 3 Fast Attach 9 | . 2 7 Attach 8 | . 1 7 Detach 2 | . . 2 Swap . | . . . Drop 15 | . 12 3 Fire 58 | . 28 30 Melee . | . . . Ram 6 | . . 6 Kick . | . . . Crush 8 | . . 8 Escape Stasis . | . . . Rewire . | . . . Trap . | . . . Miscellaneous . | . . . Route ------- -11/Scrapyard -10/Materials (discovered 3 exits: *Mat / [*Min x2]) -9/Materials (discovered 1 exit: [*Min]) History --------- Turn | Location | Event 1 | -11/Scrapyard | Discovered new exit (range 0) 1 | -11/Scrapyard | Entered Materials 130 | -10/Materials | Discovered new exit (range 7) 270 | -10/Materials | Discovered new exit (range 13) 283 | -10/Materials | Discovered new exit (range 13) 303 | -10/Materials | Build established: Mutant 350 | -10/Materials | Entered another Materials area 350 | -9/Materials | Evolved 2 slots: Propulsion x1, Utility x1 410 | -9/Materials | Discovered new exit (range 15) 564 | -9/Materials | Core integrity fell below 50% 680 | -9/Materials | Core integrity fell below 20% 694 | -9/Materials | Destroyed by Y-45 Defender with Heavy Assault Rifle Last Messages --------------- 00561_ Crushed U-05 Engineer. 00561_ U-05 Engineer destroyed. 00563_ Acquired Heat Sink. 00571_ R-06 Scavenger collects Welding Torch. 00571_ Destroyed Welding Torch. 00571_ T-07 Excavator destroyed. 00577_ Hvy. Particle Cannon destroyed. 00615_ R-06 Scavenger collects Terrain Scanner. 00622_ Lgt. Treads destroyed. 00647_ Heat Sink destroyed. 00670_ Lgt. Treads destroyed. 00675_ Slammed into Y-45 Defender. 00682_ Critical hit (Burn: +37). 00683_ Slammed into Y-45 Defender. 00685_ Lgt. Treads destroyed. 00687_ Slammed into Y-45 Defender. 00692_ Destabilizing: Core damaged (-16). 00693_ Slammed into Y-45 Defender. 00693_ Destabilizing: Core damaged (-4). 00694_ Slammed into Y-45 Defender. Map ----- +----------------------------------------------------+ | ??????????????????????????????????????? | | ??????????????????????????????????????? | | ??????????????????????????????????????? | | ??????????????????????????????????????? | | ??????????????????????????????????????? | | ??????????????????????????????????????? | | ??????????????????????????????????????? | | ??????????????????????????????????????? | | ??????????????????????????????????????? | | ??????????????????????????????????????? | | ??????????????????????????????????????? | | ??????????????????????????????????????? | | ??????##########??????????????????????? | | ??????# #??????????????????????? | | ??????# """ ! #?????????? ???????????? | | ??????# """ #??####+### #????????? | | ??????# """ # ????????? | | ??????# + ????????? | | ??????# ! # ????????? | | ??????# "T" #??+#### #???????????? | | ??????# """ #??????# #?????????#?? | | ??????# #??????# #???????? """ | | ??????########+#??????# #???????? "Y" | | ?????????????#%#??????# #???????? " ? | | ?????????????#Y#??????# #???????? ? | | ??##########?#@#??????# #???????? ? | | ??# ! #?#%#??????# #???????? ?? | | ???? ###%###???## ##??????? ?? | | ???? """ # %%% #???# ########+### | | ????""""" # ##### | | ????""""" + | | ????""""" # ##### | | ???? """ # #???# ####### "" | | ???? ###+####??### ###???#"" "" | | ??# # #????#%#?????#"T "" | | ??########## """ #????#/#######"" "" | | ???????????# """ #????# #### "" | | ???????????# """ #????#= #??# | | ???????????# #????# #??# | | ???????????#! #????# #??#^ "" | | ???????????########????# ##?# "" | | ???????????????????????# * [ ##?#^ "" | | ???????????? ######### ! #### "" | | ??????????# ![[ "" | | ??????????# !%%=% | | ??????????# = | | ??????????? ####### ######### | | ???????????#??????????#! !##???????? | | ??????????????????????#! !#????????? | | ??????????????????????##!!!!##????????? | +----------------------------------------------------+ Best States ------------- Heat Dissipation 38 Energy Generation 10 Energy Capacity 250 Matter Stores 300 Matter Capacity 300 Sight Range 16 Terrain Scan Density 10 Additional Mass Support 9 Armor Coverage 150 Evasion (%) 62 Recoil Reduction 3 Item Schematics ----------------- None Robot Schematics ------------------ None Fabricated ------------ Nothing Alien Tech Used ----------------- None Achievements -------------- None Challenges ------------ None Game ------ Seed ThermalControlSabre Manual? 0 Play Time 00:15:26 Cumulative 17.2 hours Start 2022.03.26 @ 20:03:51 End 2022.03.26 @ 20:17:58 Sessions 1 Manual Loads 0 Difficulty Rogue Special Mode None Game No. 25 Rogue 25 Adventurer 0 Explorer 0 Win Type - Total 0 Types 0/0/0/0/0/0/0/0/0 Lore% 13 Gallery% 23 Achievement% 16 Wizard Run 0 Options --------- ASCII 0 Keyboard 1 Movement Numpad Keybinds 0 Fullscreen 2 Font 18/TerminusBold Map View 76x50 Tactical HUD 1 Map Filters NONE Filters NONE Steam 1 RUN: 2d9cb1c0-ea1b-4718-bc53-e436108c130a